[Event "*** Titled Tuesday Blitz"]
[Site "Chess.com"]
[Date "2021.04.20"]
[Round "2"]
[White "HackingKid98"]
[Black "joejan"]
[Result "1-0"]
[WhiteElo "2472"]
[BlackElo "2274"]
[TimeControl "180+1"]
[EndTime "10:13:32 PDT"]
[Termination "HackingKid98 won by resignation"]

1. c4 {[%clk 0:03:00.9]} 1... e5 {[%clk 0:02:59.3]} 2. g3 {[%clk 0:03:00.9]}
2... Nc6 {[%clk 0:02:59.6]} 3. Bg2 {[%clk 0:03:01.1]} 3... f5 {[%clk 0:03:00.1]}
4. Nf3 {[%clk 0:03:01.3]} 4... Nf6 {[%clk 0:03:00.4]} 5. O-O {[%clk 0:03:01.3]}
5... Bc5 {[%clk 0:02:58.9]} 6. Nxe5 {[%clk 0:02:58.7]} 6... Nxe5 {[%clk
0:02:56.6]} 7. d4 {[%clk 0:02:58.6]} 7... Bd6 {[%clk 0:02:56.8]} 8. c5 {[%clk
0:02:56.4]} 8... Be7 {[%clk 0:02:46.8]} 9. dxe5 {[%clk 0:02:56.2]} 9... Ne4
{[%clk 0:02:47]} 10. Be3 {[%clk 0:02:48.2]} 10... O-O {[%clk 0:02:41.2]} 11. Nc3
{[%clk 0:02:47.5]} 11... Nxc3 {[%clk 0:02:39.1]} 12. bxc3 {[%clk 0:02:48.4]}
12... Bg5 {[%clk 0:02:35.9]} 13. Bxg5 {[%clk 0:02:45.9]} 13... Qxg5 {[%clk
0:02:34.8]} 14. f4 {[%clk 0:02:46.8]} 14... Qe7 {[%clk 0:02:33.1]} 15. Qd4
{[%clk 0:02:43.9]} 15... Rb8 {[%clk 0:02:30.7]} 16. Rab1 {[%clk 0:02:38.7]}
16... b6 {[%clk 0:02:30.3]} 17. cxb6 {[%clk 0:02:38.8]} 17... axb6 {[%clk
0:02:29.5]} 18. Rfd1 {[%clk 0:02:37.6]} 18... Ba6 {[%clk 0:02:28.3]} 19. Qxd7
{[%clk 0:02:35.2]} 19... Qc5+ {[%clk 0:02:27.7]} 20. Qd4 {[%clk 0:02:31.6]}
20... Bxe2 {[%clk 0:02:26.9]} 21. Qxc5 {[%clk 0:02:31.2]} 21... bxc5 {[%clk
0:02:27.4]} 22. Re1 {[%clk 0:02:30.7]} 22... Bd3 {[%clk 0:02:25.5]} 23. Bd5+
{[%clk 0:02:15.3]} 23... Kh8 {[%clk 0:02:24]} 24. Rxb8 {[%clk 0:02:12.4]} 24...
Rxb8 {[%clk 0:02:22.8]} 25. e6 {[%clk 0:02:13.3]} 25... Bb5 {[%clk 0:02:12.4]}
26. Rb1 {[%clk 0:02:12.1]} 26... Rb6 {[%clk 0:02:07.4]} 27. Rxb5 {[%clk
0:01:53.9]} 27... Rxb5 {[%clk 0:02:02.7]} 28. e7 {[%clk 0:01:54.8]} 1-0

[Event "*** Titled Tuesday Blitz"]
[Site "Chess.com"]
[Date "2021.04.20"]
[Round "2"]
[White "Iball95"]
[Black "Olga_Zhuravleva"]
[Result "1-0"]
[WhiteElo "2603"]
[BlackElo "2329"]
[TimeControl "180+1"]
[EndTime "10:13:44 PDT"]
[Termination "Iball95 won by resignation"]

1. e4 {[%clk 0:03:00.9]} 1... e5 {[%clk 0:02:59.9]} 2. Nf3 {[%clk 0:03:00.9]}
2... Nc6 {[%clk 0:03:00.4]} 3. Nc3 {[%clk 0:03:00.2]} 3... Nf6 {[%clk
0:02:59.9]} 4. Bb5 {[%clk 0:03:00.6]} 4... Nd4 {[%clk 0:02:56.3]} 5. Bc4 {[%clk
0:02:57.5]} 5... d6 {[%clk 0:02:43.1]} 6. Nxd4 {[%clk 0:02:48.5]} 6... exd4
{[%clk 0:02:42.5]} 7. Nd5 {[%clk 0:02:48.1]} 7... c6 {[%clk 0:02:38.4]} 8. Nxf6+
{[%clk 0:02:46.5]} 8... Qxf6 {[%clk 0:02:39.3]} 9. O-O {[%clk 0:02:46.3]} 9...
Be6 {[%clk 0:02:36.8]} 10. Bxe6 {[%clk 0:02:45.2]} 10... fxe6 {[%clk 0:02:35.6]}
11. d3 {[%clk 0:02:45.2]} 11... O-O-O {[%clk 0:02:31.7]} 12. c3 {[%clk
0:02:41.7]} 12... dxc3 {[%clk 0:02:29.4]} 13. bxc3 {[%clk 0:02:42.5]} 13... Qxc3
{[%clk 0:02:26.9]} 14. Be3 {[%clk 0:02:35.3]} 14... Kb8 {[%clk 0:02:21.2]} 15.
Qa4 {[%clk 0:02:26.5]} 15... c5 {[%clk 0:02:11.8]} 16. Rab1 {[%clk 0:02:22]}
16... Qf6 {[%clk 0:01:30]} 17. Rxb7+ {[%clk 0:02:13.6]} 17... Kxb7 {[%clk
0:01:16.2]} 18. Rb1+ {[%clk 0:02:13]} 18... Kc7 {[%clk 0:01:13.6]} 19. Qxa7+
{[%clk 0:02:12.5]} 1-0

[Event "*** Titled Tuesday Blitz"]
[Site "Chess.com"]
[Date "2021.04.20"]
[Round "2"]
[White "Guzman70"]
[Black "Nuvas"]
[Result "0-1"]
[WhiteElo "2317"]
[BlackElo "2650"]
[TimeControl "180+1"]
[EndTime "10:14:06 PDT"]
[Termination "Nuvas won by resignation"]

1. d4 {[%clk 0:03:00.9]} 1... Nf6 {[%clk 0:02:58.6]} 2. Bf4 {[%clk 0:03:00.8]}
2... d5 {[%clk 0:02:58.6]} 3. e3 {[%clk 0:03:00.6]} 3... c5 {[%clk 0:02:58.8]}
4. Nf3 {[%clk 0:02:58.6]} 4... Nc6 {[%clk 0:02:57]} 5. c3 {[%clk 0:02:54.7]}
5... Qb6 {[%clk 0:02:56.6]} 6. dxc5 {[%clk 0:02:47.1]} 6... Qxb2 {[%clk
0:02:53.1]} 7. Nbd2 {[%clk 0:02:47.2]} 7... Qxc3 {[%clk 0:02:31.9]} 8. Rc1
{[%clk 0:02:36.6]} 8... Qa5 {[%clk 0:02:31.3]} 9. Bd3 {[%clk 0:02:30.3]} 9...
Bg4 {[%clk 0:02:29.8]} 10. O-O {[%clk 0:02:28.7]} 10... e5 {[%clk 0:02:29.8]}
11. Nb3 {[%clk 0:02:17.2]} 11... Qd8 {[%clk 0:02:29.3]} 12. Bg5 {[%clk
0:02:10.5]} 12... e4 {[%clk 0:02:27.8]} 13. Bb5 {[%clk 0:02:09.2]} 13... exf3
{[%clk 0:02:25.1]} 14. gxf3 {[%clk 0:02:08.7]} 14... Bh3 {[%clk 0:02:23.2]} 15.
Nd4 {[%clk 0:02:03.9]} 15... Rc8 {[%clk 0:02:18.3]} 16. Qa4 {[%clk 0:01:56.3]}
16... Bd7 {[%clk 0:01:56.9]} 17. Rfd1 {[%clk 0:01:48.9]} 17... Be7 {[%clk
0:01:53.6]} 18. Kh1 {[%clk 0:01:47.6]} 18... O-O {[%clk 0:01:53.3]} 19. Rg1
{[%clk 0:01:47.2]} 19... Kh8 {[%clk 0:01:53.5]} 20. Bf4 {[%clk 0:01:46.9]} 20...
a6 {[%clk 0:01:51.9]} 21. Bxc6 {[%clk 0:01:40.3]} 21... Bxc6 {[%clk 0:01:52]}
22. Qc2 {[%clk 0:01:38.5]} 22... Bd7 {[%clk 0:01:48.3]} 23. Be5 {[%clk
0:01:35.4]} 23... Rxc5 {[%clk 0:01:46.4]} 24. Qxc5 {[%clk 0:01:34.6]} 24... Bxc5
{[%clk 0:01:46.2]} 25. Rxc5 {[%clk 0:01:35.5]} 25... Qe7 {[%clk 0:01:45]} 26. f4
{[%clk 0:01:34.8]} 26... Qxc5 {[%clk 0:01:44.7]} 0-1

[Event "*** Titled Tuesday Blitz"]
[Site "Chess.com"]
[Date "2021.04.20"]
[Round "2"]
[White "OlifantCZ"]
[Black "beautroll"]
[Result "0-1"]
[WhiteElo "2240"]
[BlackElo "2458"]
[TimeControl "180+1"]
[EndTime "10:14:18 PDT"]
[Termination "beautroll won by resignation"]

1. c4 {[%clk 0:03:00.9]} 1... Nf6 {[%clk 0:02:59.7]} 2. g3 {[%clk 0:03:01]} 2...
g6 {[%clk 0:02:59.6]} 3. Bg2 {[%clk 0:03:01.4]} 3... Bg7 {[%clk 0:03:00]} 4. Nc3
{[%clk 0:03:02.1]} 4... O-O {[%clk 0:03:00.3]} 5. e4 {[%clk 0:03:02.3]} 5... d6
{[%clk 0:03:00.4]} 6. Nge2 {[%clk 0:03:02.9]} 6... e5 {[%clk 0:02:54.5]} 7. O-O
{[%clk 0:03:03.2]} 7... Nbd7 {[%clk 0:02:52.8]} 8. h3 {[%clk 0:03:03.3]} 8... c6
{[%clk 0:02:52.5]} 9. d3 {[%clk 0:03:02.9]} 9... Re8 {[%clk 0:02:51.9]} 10. f4
{[%clk 0:03:02.9]} 10... exf4 {[%clk 0:02:49.9]} 11. gxf4 {[%clk 0:03:01.3]}
11... a5 {[%clk 0:02:44.7]} 12. b3 {[%clk 0:02:59]} 12... Nc5 {[%clk 0:02:39.9]}
13. Ng3 {[%clk 0:02:55.6]} 13... Ng4 {[%clk 0:02:25]} 14. hxg4 {[%clk
0:02:43.3]} 14... Bxc3 {[%clk 0:02:16.2]} 15. Be3 {[%clk 0:02:39.9]} 15... Qh4
{[%clk 0:02:11.8]} 16. Kf2 {[%clk 0:02:03.5]} 16... Bxa1 {[%clk 0:02:02.1]} 17.
Qxa1 {[%clk 0:02:02.7]} 17... Nxd3+ {[%clk 0:01:59]} 18. Ke2 {[%clk 0:01:48.7]}
18... Qxg3 {[%clk 0:01:57.5]} 19. Kxd3 {[%clk 0:01:48.4]} 19... Qxg2 {[%clk
0:01:57.1]} 20. e5 {[%clk 0:01:47.2]} 20... Bxg4 {[%clk 0:01:49.4]} 21. Rg1
{[%clk 0:01:14.7]} 21... Qe2+ {[%clk 0:01:45.5]} 0-1

[Event "*** Titled Tuesday Blitz"]
[Site "Chess.com"]
[Date "2021.04.20"]
[Round "2"]
[White "erdni1993"]
[Black "topin8"]
[Result "1-0"]
[WhiteElo "2424"]
[BlackElo "2179"]
[TimeControl "180+1"]
[EndTime "10:14:26 PDT"]
[Termination "erdni1993 won by resignation"]

1. e4 {[%clk 0:03:00.9]} 1... e5 {[%clk 0:02:58.7]} 2. Nf3 {[%clk 0:03:00.9]}
2... Nc6 {[%clk 0:02:58.4]} 3. Bb5 {[%clk 0:03:01.5]} 3... Nf6 {[%clk 0:02:58]}
4. O-O {[%clk 0:03:00.5]} 4... Nxe4 {[%clk 0:02:57.7]} 5. d4 {[%clk 0:03:00.8]}
5... Nd6 {[%clk 0:02:56.7]} 6. Bxc6 {[%clk 0:03:01.2]} 6... dxc6 {[%clk
0:02:57.6]} 7. dxe5 {[%clk 0:03:01.5]} 7... Nf5 {[%clk 0:02:57]} 8. Qxd8+ {[%clk
0:03:02.4]} 8... Kxd8 {[%clk 0:02:57.9]} 9. Nc3 {[%clk 0:03:02.6]} 9... h5
{[%clk 0:02:45.6]} 10. Bg5+ {[%clk 0:03:00.8]} 10... Ke8 {[%clk 0:02:41.8]} 11.
Rad1 {[%clk 0:03:01.7]} 11... Be6 {[%clk 0:02:40.9]} 12. Nd4 {[%clk 0:02:52.2]}
12... Nxd4 {[%clk 0:02:32.3]} 13. Rxd4 {[%clk 0:02:53.1]} 13... Be7 {[%clk
0:02:26.1]} 14. Ne4 {[%clk 0:02:46.9]} 14... Bd5 {[%clk 0:01:50.9]} 15. Bxe7
{[%clk 0:02:42.2]} 15... Kxe7 {[%clk 0:01:51.8]} 16. Ng5 {[%clk 0:02:42.6]}
16... Bxa2 {[%clk 0:01:05.4]} 17. b3 {[%clk 0:02:37.7]} 17... b5 {[%clk
0:00:46.8]} 18. Ra1 {[%clk 0:02:20.9]} 18... Rhd8 {[%clk 0:00:24]} 19. Rxd8
{[%clk 0:02:19.9]} 19... Rxd8 {[%clk 0:00:24.9]} 20. f4 {[%clk 0:02:20.2]} 20...
f6 {[%clk 0:00:20.8]} 21. Nf3 {[%clk 0:02:18.7]} 1-0

[Event "*** Titled Tuesday Blitz"]
[Site "Chess.com"]
[Date "2021.04.20"]
[Round "2"]
[White "SchmakAttack"]
[Black "wonderfultime"]
[Result "0-1"]
[WhiteElo "2598"]
[BlackElo "2960"]
[TimeControl "180+1"]
[EndTime "10:14:28 PDT"]
[Termination "wonderfultime won by resignation"]

1. Nf3 {[%clk 0:02:58.6]} 1... d5 {[%clk 0:02:58.7]} 2. g3 {[%clk 0:02:58.2]}
2... Nd7 {[%clk 0:02:59]} 3. d4 {[%clk 0:02:57.8]} 3... Nb6 {[%clk 0:02:59.3]}
4. Bg2 {[%clk 0:02:56.3]} 4... Nf6 {[%clk 0:02:59.6]} 5. O-O {[%clk 0:02:54.6]}
5... Bf5 {[%clk 0:02:59.7]} 6. Ne5 {[%clk 0:02:37]} 6... c6 {[%clk 0:02:55]} 7.
Nd2 {[%clk 0:02:32]} 7... e6 {[%clk 0:02:53.2]} 8. c4 {[%clk 0:02:29.2]} 8...
Be7 {[%clk 0:02:51.6]} 9. e3 {[%clk 0:02:20.5]} 9... h6 {[%clk 0:02:48.9]} 10.
Qb3 {[%clk 0:02:12.4]} 10... Qc7 {[%clk 0:02:45.7]} 11. a4 {[%clk 0:02:07.8]}
11... a5 {[%clk 0:02:36]} 12. c5 {[%clk 0:02:07.5]} 12... Nbd7 {[%clk 0:02:35]}
13. f4 {[%clk 0:02:02.9]} 13... O-O {[%clk 0:02:31.3]} 14. Qc3 {[%clk
0:01:53.7]} 14... Rfc8 {[%clk 0:02:26.6]} 15. b3 {[%clk 0:01:38.8]} 15... b6
{[%clk 0:02:23.3]} 16. cxb6 {[%clk 0:01:38.3]} 16... Qxb6 {[%clk 0:02:21.5]} 17.
Ba3 {[%clk 0:01:24.5]} 17... Bxa3 {[%clk 0:01:56.1]} 18. Rxa3 {[%clk 0:01:24.1]}
18... c5 {[%clk 0:01:56.7]} 19. dxc5 {[%clk 0:01:02.7]} 19... Rxc5 {[%clk
0:01:37.6]} 20. Qxa5 {[%clk 0:01:03.2]} 0-1

[Event "*** Titled Tuesday Blitz"]
[Site "Chess.com"]
[Date "2021.04.20"]
[Round "2"]
[White "FrenchMonster2002"]
[Black "enriquebutti"]
[Result "1-0"]
[WhiteElo "2394"]
[BlackElo "2062"]
[TimeControl "180+1"]
[EndTime "10:14:28 PDT"]
[Termination "FrenchMonster2002 won by resignation"]

1. e4 {[%clk 0:03:00.9]} 1... c5 {[%clk 0:02:53.1]} 2. Nc3 {[%clk 0:03:01]} 2...
Nc6 {[%clk 0:02:50.9]} 3. Bb5 {[%clk 0:03:01.5]} 3... e6 {[%clk 0:02:48.8]} 4.
Bxc6 {[%clk 0:03:01.4]} 4... bxc6 {[%clk 0:02:47]} 5. f4 {[%clk 0:03:02.3]} 5...
d5 {[%clk 0:02:44.2]} 6. Nf3 {[%clk 0:03:02.5]} 6... Nf6 {[%clk 0:02:42.6]} 7.
d3 {[%clk 0:02:58]} 7... c4 {[%clk 0:02:39.1]} 8. dxc4 {[%clk 0:02:54.9]} 8...
Bb4 {[%clk 0:02:35.9]} 9. cxd5 {[%clk 0:02:34.4]} 9... cxd5 {[%clk 0:02:34.8]}
10. exd5 {[%clk 0:02:28.5]} 10... Nxd5 {[%clk 0:02:32.9]} 11. O-O {[%clk
0:02:25.9]} 11... Bxc3 {[%clk 0:02:26.2]} 12. bxc3 {[%clk 0:02:25.6]} 12... Ba6
{[%clk 0:02:25.3]} 13. Re1 {[%clk 0:02:22.8]} 13... O-O {[%clk 0:02:22.5]} 14.
Qd4 {[%clk 0:02:13.7]} 14... Rc8 {[%clk 0:02:15.6]} 15. Ba3 {[%clk 0:02:02.3]}
15... Rxc3 {[%clk 0:02:12]} 16. Bxf8 {[%clk 0:01:58.6]} 16... Qxf8 {[%clk
0:02:06.7]} 17. Rad1 {[%clk 0:01:45.9]} 17... Rxc2 {[%clk 0:01:55.7]} 18. Qa4
{[%clk 0:01:43.6]} 18... Qc8 {[%clk 0:01:50.3]} 19. Rxd5 {[%clk 0:01:35]} 1-0

[Event "*** Titled Tuesday Blitz"]
[Site "Chess.com"]
[Date "2021.04.20"]
[Round "2"]
[White "Gahan-MG"]
[Black "barbara25"]
[Result "1-0"]
[WhiteElo "2627"]
[BlackElo "2307"]
[TimeControl "180+1"]
[EndTime "10:14:36 PDT"]
[Termination "Gahan-MG won by resignation"]

1. e4 {[%clk 0:03:00.9]} 1... c6 {[%clk 0:02:57.4]} 2. d4 {[%clk 0:03:00.4]}
2... c5 {[%clk 0:02:58.3]} 3. d5 {[%clk 0:02:57.7]} 3... d6 {[%clk 0:02:57]} 4.
c4 {[%clk 0:02:57.7]} 4... e6 {[%clk 0:02:57.3]} 5. Nc3 {[%clk 0:02:57.9]} 5...
Nf6 {[%clk 0:02:56.8]} 6. Bd3 {[%clk 0:02:52.9]} 6... Be7 {[%clk 0:02:56.9]} 7.
Nge2 {[%clk 0:02:52.8]} 7... O-O {[%clk 0:02:55.6]} 8. O-O {[%clk 0:02:52.9]}
8... a6 {[%clk 0:02:56]} 9. f4 {[%clk 0:02:49.6]} 9... exd5 {[%clk 0:02:56.2]}
10. cxd5 {[%clk 0:02:47.8]} 10... b5 {[%clk 0:02:56.2]} 11. e5 {[%clk
0:02:45.3]} 11... Nfd7 {[%clk 0:02:55.9]} 12. exd6 {[%clk 0:02:39.1]} 12... Bxd6
{[%clk 0:02:55.2]} 13. Ne4 {[%clk 0:02:37.7]} 13... Nf6 {[%clk 0:02:55.1]} 14.
N2c3 {[%clk 0:02:34.7]} 14... b4 {[%clk 0:02:51.4]} 15. Nxf6+ {[%clk 0:02:33.6]}
15... Qxf6 {[%clk 0:02:50.2]} 16. Ne4 {[%clk 0:02:34.5]} 16... Qd8 {[%clk
0:02:50.1]} 17. Be3 {[%clk 0:02:31.5]} 17... g6 {[%clk 0:02:36.4]} 18. Nxc5
{[%clk 0:02:26.2]} 18... Bxc5 {[%clk 0:02:35.7]} 19. Bxc5 {[%clk 0:02:27.1]}
19... Re8 {[%clk 0:02:36.1]} 20. d6 {[%clk 0:02:20.3]} 20... a5 {[%clk 0:02:35]}
21. f5 {[%clk 0:02:16.8]} 21... Nd7 {[%clk 0:02:32.6]} 22. fxg6 {[%clk
0:02:16.1]} 22... hxg6 {[%clk 0:02:31.6]} 23. Bxg6 {[%clk 0:02:02.5]} 23... fxg6
{[%clk 0:02:25.8]} 24. Qd5+ {[%clk 0:02:01.8]} 24... Kg7 {[%clk 0:02:25.1]} 25.
Rf7+ {[%clk 0:01:52]} 25... Kh6 {[%clk 0:02:25.1]} 26. Qd2+ {[%clk 0:01:42.8]}
26... g5 {[%clk 0:02:22.8]} 27. Raf1 {[%clk 0:01:32.9]} 27... Ba6 {[%clk
0:02:15.3]} 28. Qc2 {[%clk 0:01:21.1]} 28... Rh8 {[%clk 0:02:09.9]} 29. R1f3
{[%clk 0:01:08.3]} 1-0

[Event "*** Titled Tuesday Blitz"]
[Site "Chess.com"]
[Date "2021.04.20"]
[Round "2"]
[White "Kopytkin"]
[Black "Trickster_Pony"]
[Result "1-0"]
[WhiteElo "2364"]
[BlackElo "1573"]
[TimeControl "180+1"]
[EndTime "10:14:43 PDT"]
[Termination "Kopytkin won by resignation"]

1. e4 {[%clk 0:03:00.9]} 1... c5 {[%clk 0:03:00.1]} 2. d4 {[%clk 0:03:00.5]}
2... cxd4 {[%clk 0:02:59.8]} 3. c3 {[%clk 0:03:01]} 3... dxc3 {[%clk 0:02:59.9]}
4. Nxc3 {[%clk 0:03:01.9]} 4... Nc6 {[%clk 0:03:00]} 5. Nf3 {[%clk 0:03:02.6]}
5... d6 {[%clk 0:03:00]} 6. Bc4 {[%clk 0:03:03.1]} 6... a6 {[%clk 0:03:00]} 7.
O-O {[%clk 0:02:59.8]} 7... Nf6 {[%clk 0:02:56.6]} 8. Bf4 {[%clk 0:02:48.2]}
8... Bg4 {[%clk 0:00:45.2]} 9. h3 {[%clk 0:02:41.5]} 9... Bh5 {[%clk 0:00:41.8]}
10. g4 {[%clk 0:02:40.7]} 10... Bg6 {[%clk 0:00:42]} 11. Re1 {[%clk 0:02:40.7]}
11... e5 {[%clk 0:00:40.8]} 12. Bg5 {[%clk 0:02:35.7]} 12... b5 {[%clk
0:00:39.6]} 13. Nxb5 {[%clk 0:02:26]} 13... axb5 {[%clk 0:00:34]} 14. Bxb5
{[%clk 0:02:26.1]} 14... Qb6 {[%clk 0:00:29.4]} 15. a4 {[%clk 0:02:23.1]} 15...
Nxe4 {[%clk 0:00:19.2]} 16. Qd5 {[%clk 0:02:21]} 16... Rc8 {[%clk 0:00:14.8]}
17. Rxe4 {[%clk 0:02:13.9]} 17... Bxe4 {[%clk 0:00:13.7]} 18. Qxe4 {[%clk
0:02:14.2]} 18... f6 {[%clk 0:00:12.9]} 19. Be3 {[%clk 0:02:10.5]} 19... Kd8
{[%clk 0:00:12.5]} 20. Bxb6+ {[%clk 0:02:09.5]} 1-0

[Event "*** Titled Tuesday Blitz"]
[Site "Chess.com"]
[Date "2021.04.20"]
[Round "2"]
[White "Blitzking642"]
[Black "NTBT_DHS"]
[Result "0-1"]
[WhiteElo "2475"]
[BlackElo "2704"]
[TimeControl "180+1"]
[EndTime "10:14:44 PDT"]
[Termination "NTBT_DHS won by resignation"]

1. e4 {[%clk 0:03:00.9]} 1... g6 {[%clk 0:02:59.7]} 2. d4 {[%clk 0:03:00.3]}
2... Bg7 {[%clk 0:03:00.6]} 3. Nc3 {[%clk 0:03:00.4]} 3... a6 {[%clk 0:03:00.7]}
4. Be3 {[%clk 0:02:59.5]} 4... d6 {[%clk 0:02:54.8]} 5. Qd2 {[%clk 0:02:58.7]}
5... Nd7 {[%clk 0:02:53]} 6. h4 {[%clk 0:02:54.6]} 6... Ngf6 {[%clk 0:02:48.3]}
7. f3 {[%clk 0:02:48.3]} 7... b5 {[%clk 0:02:46.4]} 8. O-O-O {[%clk 0:02:36.6]}
8... Bb7 {[%clk 0:02:20.8]} 9. Bh6 {[%clk 0:02:32.8]} 9... Bxh6 {[%clk
0:02:21.1]} 10. Qxh6 {[%clk 0:02:32.6]} 10... b4 {[%clk 0:02:17]} 11. Nce2
{[%clk 0:02:30.3]} 11... c5 {[%clk 0:02:15.8]} 12. e5 {[%clk 0:02:21.8]} 12...
Nd5 {[%clk 0:02:03.1]} 13. Qg7 {[%clk 0:02:15.1]} 13... Rf8 {[%clk 0:02:02.4]}
14. exd6 {[%clk 0:02:11.6]} 14... Qa5 {[%clk 0:01:35.7]} 15. Kb1 {[%clk
0:01:52]} 15... c4 {[%clk 0:01:14.2]} 16. dxe7 {[%clk 0:01:44.5]} 16... Nxe7
{[%clk 0:01:10.2]} 17. Nc1 {[%clk 0:01:44.1]} 17... Nf5 {[%clk 0:01:03]} 18.
Re1+ {[%clk 0:01:32.4]} 18... Kd8 {[%clk 0:01:03.1]} 19. Qxh7 {[%clk 0:01:33]}
19... Nf6 {[%clk 0:01:03]} 0-1

[Event "*** Titled Tuesday Blitz"]
[Site "Chess.com"]
[Date "2021.04.20"]
[Round "2"]
[White "korbul"]
[Black "Anton_Demchenko"]
[Result "0-1"]
[WhiteElo "2585"]
[BlackElo "2910"]
[TimeControl "180+1"]
[EndTime "10:14:47 PDT"]
[Termination "Anton_Demchenko won by resignation"]

1. e4 {[%clk 0:03:00.9]} 1... e5 {[%clk 0:02:59.4]} 2. Nf3 {[%clk 0:03:00.7]}
2... Nc6 {[%clk 0:02:58.8]} 3. Bc4 {[%clk 0:03:00.4]} 3... Nf6 {[%clk 0:02:58]}
4. d3 {[%clk 0:03:00.2]} 4... Be7 {[%clk 0:02:58.4]} 5. O-O {[%clk 0:02:58.9]}
5... O-O {[%clk 0:02:59.1]} 6. Re1 {[%clk 0:02:58.1]} 6... d6 {[%clk 0:03:00]}
7. c3 {[%clk 0:02:57.6]} 7... Kh8 {[%clk 0:03:00.5]} 8. a3 {[%clk 0:02:55.9]}
8... Ng8 {[%clk 0:03:00.6]} 9. d4 {[%clk 0:02:39.6]} 9... f5 {[%clk 0:02:57.9]}
10. dxe5 {[%clk 0:02:35.3]} 10... fxe4 {[%clk 0:02:56.2]} 11. Rxe4 {[%clk
0:02:26.4]} 11... Rxf3 {[%clk 0:02:55.6]} 12. gxf3 {[%clk 0:02:10.5]} 12... Bf5
{[%clk 0:02:52.9]} 13. Rf4 {[%clk 0:01:51.2]} 13... Bg6 {[%clk 0:02:51.8]} 14.
e6 {[%clk 0:01:24.9]} 14... Ne5 {[%clk 0:02:45.5]} 15. Be3 {[%clk 0:01:22]}
15... Bg5 {[%clk 0:02:38.2]} 16. Bf1 {[%clk 0:01:09.7]} 16... Bxf4 {[%clk
0:02:34.5]} 17. Bxf4 {[%clk 0:01:10.6]} 17... Qf6 {[%clk 0:02:32.7]} 18. Bxe5
{[%clk 0:01:09.6]} 18... Qxe5 {[%clk 0:02:33.6]} 19. Qe2 {[%clk 0:01:06.6]}
19... Qg5+ {[%clk 0:02:31.3]} 20. Kh1 {[%clk 0:01:05.8]} 20... Qc1 {[%clk
0:02:28.5]} 21. Kg2 {[%clk 0:00:56.5]} 21... Bxb1 {[%clk 0:02:23.7]} 22. h4
{[%clk 0:00:38.9]} 22... Qc2 {[%clk 0:02:16.3]} 23. Qe1 {[%clk 0:00:18.3]} 23...
Qg6+ {[%clk 0:02:15.5]} 24. Kh2 {[%clk 0:00:17.2]} 24... Bf5 {[%clk 0:02:16]}
25. Bc4 {[%clk 0:00:16.7]} 25... Re8 {[%clk 0:02:15.2]} 0-1

[Event "*** Titled Tuesday Blitz"]
[Site "Chess.com"]
[Date "2021.04.20"]
[Round "2"]
[White "buhomurciano"]
[Black "ZAbdumalik"]
[Result "0-1"]
[WhiteElo "2217"]
[BlackElo "2635"]
[TimeControl "180+1"]
[EndTime "10:14:49 PDT"]
[Termination "ZAbdumalik won on time"]

1. e4 {[%clk 0:03:00.9]} 1... e5 {[%clk 0:02:59.9]} 2. Nf3 {[%clk 0:03:00.5]}
2... Nc6 {[%clk 0:02:59.9]} 3. Bc4 {[%clk 0:03:00.8]} 3... Nf6 {[%clk
0:02:58.6]} 4. d3 {[%clk 0:02:53.4]} 4... h6 {[%clk 0:02:55.1]} 5. h3 {[%clk
0:02:47.4]} 5... d6 {[%clk 0:02:55]} 6. Nbd2 {[%clk 0:02:38]} 6... g6 {[%clk
0:02:54.4]} 7. a3 {[%clk 0:02:32.6]} 7... Bg7 {[%clk 0:02:54.3]} 8. Nf1 {[%clk
0:02:30.6]} 8... O-O {[%clk 0:02:52.9]} 9. g4 {[%clk 0:02:24.3]} 9... d5 {[%clk
0:02:51.3]} 10. exd5 {[%clk 0:02:20.7]} 10... Nxd5 {[%clk 0:02:51.2]} 11. Ng3
{[%clk 0:02:12.2]} 11... Nf4 {[%clk 0:02:51.3]} 12. c3 {[%clk 0:01:29.2]} 12...
Be6 {[%clk 0:02:47.5]} 13. Bxf4 {[%clk 0:01:06.2]} 13... exf4 {[%clk 0:02:45.6]}
14. Ne2 {[%clk 0:00:32.4]} 14... Bxc4 {[%clk 0:02:43.2]} 15. dxc4 {[%clk
0:00:32.4]} 15... Qf6 {[%clk 0:02:44]} 16. O-O {[%clk 0:00:20.1]} 16... Rad8
{[%clk 0:02:43.4]} 17. Qc2 {[%clk 0:00:17.7]} 17... Rfe8 {[%clk 0:02:38.4]} 18.
Rfe1 {[%clk 0:00:17.2]} 18... Ne5 {[%clk 0:02:36.8]} 19. Nxe5 {[%clk 0:00:12.5]}
19... Rxe5 {[%clk 0:02:37]} 20. Nd4 {[%clk 0:00:09.5]} 20... Qh4 {[%clk
0:02:34.9]} 21. Kg2 {[%clk 0:00:09.1]} 21... Rxd4 {[%clk 0:02:31.2]} 22. cxd4
{[%clk 0:00:08.3]} 22... f3+ {[%clk 0:02:28.2]} 23. Kh2 {[%clk 0:00:04.8]} 23...
Rg5 {[%clk 0:02:27.8]} 24. Qe4 {[%clk 0:00:03.1]} 24... Qxf2+ {[%clk 0:02:27.5]}
0-1

[Event "*** Titled Tuesday Blitz"]
[Site "Chess.com"]
[Date "2021.04.20"]
[Round "2"]
[White "dosto07"]
[Black "saikrishnaReturns"]
[Result "0-1"]
[WhiteElo "2331"]
[BlackElo "2655"]
[TimeControl "180+1"]
[EndTime "10:14:52 PDT"]
[Termination "saikrishnaReturns won by resignation"]

1. e4 {[%clk 0:02:56.6]} 1... e5 {[%clk 0:02:59.4]} 2. Nf3 {[%clk 0:02:55.7]}
2... Nc6 {[%clk 0:02:59.7]} 3. Bb5 {[%clk 0:02:52.8]} 3... a6 {[%clk 0:02:59.9]}
4. Ba4 {[%clk 0:02:52.2]} 4... d6 {[%clk 0:03:00.8]} 5. c3 {[%clk 0:02:49.5]}
5... f5 {[%clk 0:03:00.7]} 6. exf5 {[%clk 0:02:47.6]} 6... Bxf5 {[%clk
0:03:01.6]} 7. d4 {[%clk 0:02:47.7]} 7... e4 {[%clk 0:03:00.6]} 8. d5 {[%clk
0:02:36.8]} 8... exf3 {[%clk 0:02:59.9]} 9. dxc6 {[%clk 0:02:18.8]} 9... b5
{[%clk 0:02:44.5]} 10. Bc2 {[%clk 0:02:00.1]} 10... Qe7+ {[%clk 0:02:40.2]} 11.
Be3 {[%clk 0:01:58.2]} 11... fxg2 {[%clk 0:02:37.3]} 12. Rg1 {[%clk 0:01:57.9]}
12... Be4 {[%clk 0:02:35.3]} 13. Nd2 {[%clk 0:01:38.4]} 13... Bxc6 {[%clk
0:02:33.2]} 14. Qh5+ {[%clk 0:01:33.7]} 14... Qf7 {[%clk 0:02:29.2]} 15. Qh3
{[%clk 0:01:28.2]} 15... Nf6 {[%clk 0:02:27.1]} 16. O-O-O {[%clk 0:01:21.7]}
16... Be7 {[%clk 0:02:14.2]} 17. Bb3 {[%clk 0:01:20.1]} 17... Bd5 {[%clk
0:02:13.3]} 18. Rxg2 {[%clk 0:01:14.7]} 18... Bxb3 {[%clk 0:02:08.6]} 19. axb3
{[%clk 0:01:09.9]} 19... a5 {[%clk 0:02:09]} 20. Rdg1 {[%clk 0:01:07.8]} 20...
g6 {[%clk 0:02:08]} 21. Rxg6 {[%clk 0:01:02.1]} 21... hxg6 {[%clk 0:02:05.1]}
22. Qxh8+ {[%clk 0:01:00.9]} 22... Bf8 {[%clk 0:02:05.3]} 23. Bd4 {[%clk
0:00:56.5]} 23... Nh7 {[%clk 0:01:53.3]} 24. Re1+ {[%clk 0:00:41.6]} 24... Kd7
{[%clk 0:01:52.8]} 25. Ne4 {[%clk 0:00:41.6]} 25... Bh6+ {[%clk 0:01:50.5]} 0-1